bitfinex/quotes_BTCUSD_20251104
["timestamp","ask_amount","ask_price","bid_price","bid_amount"]
[1762224228471,1.8683379,106870.0,106860.0,0.003]
[1762224229455,1.3586031,106870.0,106860.0,0.003]
[1762224230710,1.3586031,106870.0,106860.0,0.0032312]
[1762224231899,1.3170831,106870.0,106860.0,0.0032312]
[1762224232122,2.31638396,106870.0,106860.0,0.0032312]
[1762224232283,2.31738396,106870.0,106860.0,0.0032312]
[1762224236337,2.14129504,106870.0,106860.0,0.0032312]
[1762224237165,1.6570831,106870.0,106860.0,0.0032312]
[1762224237318,2.04571898,106870.0,106860.0,0.0032312]
[1762224238520,1.5446031,106870.0,106860.0,0.0032312]
[1762224238717,2.01869898,106870.0,106860.0,0.0148012]
[1762224239131,2.03220898,106870.0,106860.0,0.0032312]
[1762224239340,2.07870681,106870.0,106860.0,0.0032312]
[1762224239953,1.72519681,106870.0,106860.0,0.0032312]
[1762224240739,1.39155093,106870.0,106860.0,0.0032312]
[1762224240943,1.72519681,106870.0,106860.0,0.0032312]
[1762224241204,1.73870681,106870.0,106860.0,0.0032312]
[1762224241587,1.73970681,106870.0,106860.0,0.0032312]
[1762224242442,1.69220898,106870.0,106860.0,0.0148012]
[1762224242644,1.67869898,106870.0,106860.0,0.0306312]
[1762224243063,1.69220898,106870.0,106860.0,0.0148012]
[1762224243850,1.69220898,106870.0,106860.0,0.20196197]
[1762224244028,0.08402185,106870.0,106860.0,0.24140197]
[1762224244235,0.23798185,106870.0,106860.0,0.24140197]
[1762224245008,0.57162773,106870.0,106860.0,0.24140197]
[1762224245618,0.75877098,106870.0,106860.0,0.24140197]
[1762224246111,1.80029504,106870.0,106860.0,0.0032312]
[1762224246319,1.64633504,106870.0,106860.0,0.0032312]
[1762224246600,1.80029504,106870.0,106860.0,0.0032312]
[1762224247348,1.64633504,106870.0,106860.0,0.0032312]
[1762224247560,1.80029504,106870.0,106860.0,0.0032312]
[1762224247959,1.80029504,106870.0,106860.0,0.19039197]
[1762224248326,1.80029504,106870.0,106860.0,0.0032312]
[1762224249239,1.80029504,106870.0,106860.0,0.19039197]
[1762224249681,1.64633504,106870.0,106860.0,0.19039197]
[1762224249920,1.80029504,106870.0,106860.0,0.19039197]
[1762224250589,0.08402185,106870.0,106860.0,0.24140197]
[1762224250804,0.23798185,106870.0,106860.0,0.24140197]
[1762224251436,0.08402185,106870.0,106860.0,0.24140197]
[1762224251643,0.23798185,106870.0,106860.0,0.24140197]
[1762224252281,1.78745985,106880.0,106870.0,0.18714325]
[1762224252489,0.11248,106870.0,106860.0,0.20196197]
[1762224252677,0.53944334,106890.0,106870.0,0.21453559]
[1762224252878,0.42510759,106880.0,106870.0,0.21453559]
[1762224253125,0.75875347,106880.0,106870.0,0.23814559]
[1762224253474,0.76651347,106880.0,106870.0,0.21467945]
[1762224253881,0.29883791,106880.0,106870.0,0.21467945]
[1762224254145,0.34031791,106880.0,106870.0,0.23828945]
[1762224254571,0.57262773,106880.0,106870.0,0.23828945]
[1762224255218,0.75975347,106880.0,106870.0,0.23828945]
[1762224255450,0.57262773,106880.0,106870.0,0.23828945]
[1762224256048,0.75975347,106880.0,106870.0,0.23828945]
[1762224256250,0.75975347,106880.0,106870.0,0.05115386]
[1762224256633,0.57262773,106880.0,106870.0,0.23829711]
[1762224256839,0.001,106880.0,106870.0,0.23829711]
[1762224257011,0.48860588,106880.0,106870.0,0.23829711]
[1762224257669,0.49536588,106880.0,106870.0,0.23829711]
[1762224257852,0.68149162,106880.0,106870.0,0.23829711]
[1762224258204,0.68149162,106880.0,106870.0,0.23929711]
[1762224258483,0.74243864,106880.0,106870.0,0.05315386]
[1762224258803,0.58847864,106880.0,106870.0,0.07186818]
[1762224259086,0.52753162,106880.0,106870.0,0.05315386]
[1762224259714,0.52753162,106880.0,106870.0,0.24029711]
[1762224260079,0.52753162,106880.0,106870.0,0.05315386]
[1762224260271,0.52753162,106880.0,106870.0,0.24029711]
[1762224260712,0.34040588,106880.0,106870.0,0.24029711]
[1762224261320,0.62870435,106910.0,106880.0,0.19648202]
[1762224261321,0.22195848,106910.0,106880.0,0.19648202]
[1762224261490,0.34040588,106910.0,106900.0,0.21462073]
[1762224262055,0.33364588,106910.0,106900.0,0.23911073]
[1762224262458,1.11529308,106920.0,106910.0,0.18707323]
[1762224262690,0.18707323,106910.0,106900.0,0.23911073]
[1762224262898,0.18707323,106910.0,106900.0,0.02753]
[1762224263106,0.28460508,106910.0,106900.0,0.01194]
[1762224263524,0.79380682,106910.0,106890.0,0.22353824]
[1762224263727,0.59322359,106910.0,106900.0,0.20468073]
[1762224263860,0.78029682,106910.0,106900.0,0.22917073]
[1762224264065,0.78029682,106910.0,106900.0,0.23217073]
[1762224264270,0.59322359,106910.0,106900.0,0.23217073]
[1762224264468,0.59322359,106910.0,106900.0,0.23017073]
[1762224265240,0.78029682,106910.0,106900.0,0.05502]
[1762224265536,0.78029682,106910.0,106900.0,0.24411073]
[1762224265897,0.78029682,106910.0,106900.0,0.05702]
[1762224266043,0.78029682,106910.0,106900.0,0.24411073]
[1762224266248,0.85392313,106910.0,106900.0,0.01694]
[1762224266452,1.77385113,106910.0,106900.0,0.01694]
[1762224266743,1.76034113,106910.0,106900.0,0.24411073]
[1762224266979,1.51315159,106910.0,106900.0,0.24411073]
[1762224268756,1.70022482,106910.0,106900.0,0.24411073]
[1762224268958,1.51315159,106910.0,106900.0,0.24411073]
[1762224269976,1.61620297,106910.0,106900.0,0.24411073]
[1762224270170,1.42912974,106910.0,106900.0,0.24411073]
[1762224270357,1.29867066,106910.0,106900.0,0.24411073]
[1762224270589,0.919928,106910.0,106900.0,0.28844098]
[1762224270771,0.00154869,106920.0,106910.0,0.18707323]
[1762224270976,0.00154869,106920.0,106910.0,0.23930323]
[1762224272454,0.38029135,106920.0,106910.0,0.23930323]
[1762224272999,0.38029135,106920.0,106910.0,0.24330323]
[1762224273404,0.38029135,106920.0,106910.0,0.24930323]
[1762224273829,0.38029135,106920.0,106910.0,0.23930323]
[1762224274181,0.38029135,106920.0,106910.0,0.24430323]
[1762224277332,0.00154869,106920.0,106910.0,0.24430323]
[1762224280427,0.00154869,106920.0,106910.0,0.28863663]
[1762224285414,0.919928,106930.0,106920.0,0.19953574]
[1762224285611,0.919928,106930.0,106920.0,0.23943574]
[1762224285840,0.33310382,106930.0,106920.0,0.23943574]
[1762224286178,0.33310382,106930.0,106920.0,0.28817498]
[1762224286580,0.33310382,106930.0,106920.0,0.29017498]
[1762224286802,0.33310382,106930.0,106920.0,0.29117498]
[1762224287492,0.52966141,106940.0,106930.0,0.18703824]
[1762224287715,1.44958941,106940.0,106930.0,0.23941824]
[1762224287897,1.78269323,106940.0,106930.0,0.23941824]
[1762224288554,1.78317371,106940.0,106930.0,0.23941824]
[1762224288755,1.78317371,106940.0,106930.0,0.05238]
[1762224289263,1.78317371,106940.0,106930.0,0.23941824]
[1762224290044,1.78317371,106940.0,106930.0,0.05238]
[1762224290898,1.78317371,106940.0,106930.0,0.23941824]
[1762224291304,1.78363562,106940.0,106930.0,0.23941824]
[1762224291906,1.78363562,106940.0,106930.0,0.05238]
[1762224294918,1.58707803,106940.0,106930.0,0.23941824]
[1762224295331,0.92087039,106940.0,106930.0,0.23941824]
[1762224295561,1.25397421,106940.0,106930.0,0.23941824]
[1762224295838,1.58707803,106940.0,106930.0,0.23941824]
[1762224296781,1.25397421,106940.0,106930.0,0.23941824]
[1762224298163,1.44099496,106940.0,106930.0,0.23941824]
[1762224298307,1.77409878,106940.0,106930.0,0.23941824]
[1762224298511,1.44099496,106940.0,106930.0,0.23941824]
[1762224298720,1.10696624,106930.0,106920.0,0.0359]
[1762224298932,1.44007006,106930.0,106920.0,0.0359]
[1762224299137,1.44007006,106930.0,106920.0,0.05238]
[1762224299558,1.78668388,106930.0,106920.0,0.02896]
[1762224299755,1.77317388,106930.0,106920.0,0.02896]
[1762224299961,1.44007006,106930.0,106920.0,0.24043574]
[1762224300336,1.44007006,106930.0,106920.0,0.05338]
[1762224300540,1.44007006,106930.0,106920.0,0.02996]
[1762224300738,1.85364275,106930.0,106920.0,0.01348]
[1762224300962,1.86715275,106930.0,106920.0,0.003]
[1762224301187,2.59012533,106930.0,106920.0,0.003]
[1762224301387,2.67414718,106930.0,106920.0,0.003]
[1762224301791,1.10701873,106900.0,106880.0,0.0359]
[1762224302039,1.86402573,106890.0,106880.0,0.01248]
[1762224302243,0.18712574,106880.0,106870.0,0.01402906]
[1762224302400,1.4860552,106880.0,106870.0,0.01402906]
[1762224302743,0.919928,106880.0,106870.0,0.24107231]
[1762224302954,0.919928,106890.0,106880.0,0.18711083]
[1762224303160,0.919928,106890.0,106880.0,0.22701083]
[1762224303583,0.919928,106880.0,106870.0,0.21067333]
[1762224303810,0.919928,106880.0,106870.0,0.25057333]
[1762224304018,0.47357752,106890.0,106880.0,0.18712574]
[1762224304019,0.09457606,106890.0,106880.0,0.18712574]
[1762224304230,1.92059718,106900.0,106890.0,0.18710824]
[1762224304429,1.92059718,106900.0,106890.0,0.19958824]
[1762224304656,1.73350552,106900.0,106890.0,0.19958824]
[1762224304864,1.57002454,106910.0,106900.0,0.18709073]
[1762224305064,0.919928,106900.0,106890.0,0.23948824]
[1762224305268,1.10701873,106900.0,106890.0,0.23948824]
[1762224305475,0.18709073,106900.0,106890.0,0.05238]
[1762224305702,0.18709073,106900.0,106890.0,0.05338]
[1762224305925,0.56609219,106900.0,106890.0,0.05438]
[1762224306132,0.37900146,106900.0,106890.0,0.24148824]
[1762224306337,0.37900146,106900.0,106890.0,0.24348824]
[1762224307152,0.37900146,106900.0,106890.0,0.24148824]
[1762224307353,0.37900146,106900.0,106890.0,0.24548824]
[1762224307504,0.56609219,106900.0,106890.0,0.05838]
[1762224307920,0.56609219,106900.0,106890.0,0.24548824]
[1762224308129,0.919928,106900.0,106890.0,0.24548824]
[1762224309972,0.18709073,106900.0,106890.0,0.05838]
[1762224310175,0.18709073,106900.0,106890.0,0.24548824]
[1762224311923,0.56609219,106900.0,106890.0,0.24548824]
[1762224312128,1.58324892,106900.0,106890.0,0.01848]
[1762224312330,1.59675892,106900.0,106890.0,0.006]
[1762224313120,1.59675892,106900.0,106890.0,0.002]
[1762224313317,1.59675892,106900.0,106890.0,0.004]
[1762224313532,1.59675892,106900.0,106890.0,0.002]
[1762224313745,1.59675892,106900.0,106890.0,0.003]
[1762224313949,1.59675892,106900.0,106890.0,0.001]
[1762224314149,0.18712574,106880.0,106870.0,0.23409326]
[1762224314358,0.5661272,106880.0,106870.0,0.03759292]
[1762224314557,0.5661272,106880.0,106870.0,0.05407292]
[1762224314760,0.37900146,106880.0,106870.0,0.24121617]
[1762224314968,0.5661272,106880.0,106870.0,0.24121617]
[1762224315378,0.5661272,106880.0,106870.0,0.05407292]
[1762224315602,0.5661272,106880.0,106870.0,0.05607292]
[1762224315948,0.5661272,106880.0,106870.0,0.24321617]
[1762224316386,0.5661272,106880.0,106870.0,0.06007292]
[1762224316585,0.56609219,106900.0,106880.0,0.18712574]
[1762224316864,0.56609219,106900.0,106880.0,0.21106574]
[1762224317054,1.82602019,106900.0,106890.0,0.02712]
[1762224317376,1.82602019,106900.0,106890.0,0.21422824]
[1762224317614,1.63892946,106900.0,106890.0,0.23816824]
[1762224317858,1.82602019,106900.0,106890.0,0.21422824]
[1762224318105,1.48602019,106900.0,106890.0,0.21422824]
[1762224318346,1.48602019,106900.0,106890.0,0.02712]
[1762224319252,1.58059625,106900.0,106890.0,0.21422824]
[1762224319482,1.58059625,106900.0,106890.0,0.23816824]
[1762224319701,1.59410625,106900.0,106880.0,0.02394]
[1762224319914,1.10705374,106880.0,106870.0,0.03811292]
[1762224320120,0.5661272,106880.0,106870.0,0.03811292]
[1762224320333,0.5661272,106880.0,106870.0,0.05327292]
[1762224321145,1.4860552,106880.0,106870.0,0.05327292]
[1762224321412,1.4860552,106880.0,106870.0,0.05927292]
[1762224322179,1.4860552,106880.0,106870.0,0.24641617]
[1762224322821,1.29892946,106880.0,106870.0,0.24641617]
[1762224323082,0.919928,106880.0,106870.0,0.24641617]
[1762224323604,1.10705374,106880.0,106870.0,0.05927292]
[1762224323824,1.10705374,106880.0,106870.0,0.24641617]
[1762224324050,1.10705374,106880.0,106870.0,0.05927292]
[1762224324291,1.44050525,106880.0,106870.0,0.05927292]
[1762224324739,1.44050525,106880.0,106870.0,0.24641617]
[1762224325173,1.44050525,106880.0,106870.0,0.05927292]
[1762224325381,1.44050525,106880.0,106870.0,0.24641617]
[1762224326398,1.10705374,106880.0,106870.0,0.05927292]
[1762224327039,1.50908776,106880.0,106870.0,0.00769292]
[1762224327249,1.99609471,106880.0,106870.0,0.00769292]
[1762224327684,1.61717382,106880.0,106870.0,0.00769292]
[1762224328099,1.99609471,106880.0,106870.0,0.00769292]
[1762224328307,1.61817382,106880.0,106870.0,0.00769292]
[1762224328569,1.61817382,106880.0,106870.0,0.00369292]
[1762224328729,1.60466382,106880.0,106870.0,0.00369292]
[1762224329103,1.60366382,106880.0,106870.0,0.01773292]
[1762224329333,1.60366382,106880.0,106870.0,0.01573292]
[1762224329466,1.60366382,106880.0,106870.0,0.01673292]
[1762224330505,1.73426548,106880.0,106870.0,0.01673292]
[1762224332382,1.73426548,106880.0,106870.0,0.20387617]
[1762224332814,1.72075548,106880.0,106870.0,0.21896617]
[1762224333020,1.02410719,106880.0,106870.0,0.21896617]
[1762224333235,0.00960313,106880.0,106870.0,0.24305617]
[1762224333455,1.61657629,106880.0,106870.0,0.03182292]
[1762224333680,1.63008629,106880.0,106870.0,0.03182292]
[1762224333883,1.63008629,106880.0,106870.0,0.01673292]
[1762224334204,1.63008629,106880.0,106870.0,0.00469292]
[1762224335255,1.63008629,106880.0,106870.0,0.01673292]
[1762224336528,1.63969893,106880.0,106870.0,0.20387617]
[1762224336729,1.62618893,106880.0,106870.0,0.21896617]
[1762224337306,0.92954064,106880.0,106870.0,0.24305617]
[1762224337425,0.00961264,106880.0,106870.0,0.24305617]
[1762224337633,0.18712574,106880.0,106870.0,0.24305617]
[1762224337854,0.20637644,106880.0,106870.0,0.05591292]
[1762224338058,1.11641655,106880.0,106870.0,0.05591292]
[1762224339436,1.6259391,106880.0,106870.0,0.05591292]
[1762224340402,1.6259391,106880.0,106870.0,0.24305617]
[1762224342302,1.43881336,106880.0,106870.0,0.24305617]
[1762224343380,0.92929081,106880.0,106870.0,0.24305617]
[1762224343557,1.11641655,106880.0,106870.0,0.24305617]
[1762224343742,0.92929081,106880.0,106870.0,0.24305617]
[1762224343921,1.43881336,106880.0,106870.0,0.24305617]
[1762224344488,1.6259391,106880.0,106870.0,0.24305617]
[1762224344664,1.53338942,106880.0,106870.0,0.24305617]
[1762224345279,1.54689942,106880.0,106870.0,0.22796617]
[1762224345428,1.74753516,106880.0,106870.0,0.00469292]
[1762224346045,1.14343655,106880.0,106870.0,0.19183617]
[1762224346259,1.14343655,106880.0,106870.0,0.00469292]
[1762224346461,1.46339043,106880.0,106870.0,0.00469292]
[1762224346868,1.47790043,106880.0,106870.0,0.00469292]
[1762224348330,1.83435956,106880.0,106870.0,0.00469292]
[1762224348537,1.96235963,106880.0,106870.0,0.00469292]
[1762224349079,1.96135963,106880.0,106870.0,0.00469292]
[1762224349284,1.92993562,106880.0,106870.0,0.00369292]
[1762224349484,1.92993562,106880.0,106870.0,0.00169292]
[1762224349692,1.96335963,106880.0,106870.0,0.00169292]
[1762224349890,1.96735963,106880.0,106870.0,0.00169292]
[1762224350092,1.96835963,106880.0,106870.0,0.00169292]
[1762224350310,0.1871958,106840.0,106830.0,0.01176]
[1762224350515,1.44063566,106840.0,106830.0,0.03526]
[1762224350739,1.44063566,106840.0,106830.0,0.23772332]
[1762224350740,0.91997598,106840.0,106830.0,0.23772332]
[1762224350933,4.798e-05,106840.0,106830.0,0.23772332]
[1762224351139,4.798e-05,106840.0,106830.0,0.23864838]
[1762224351762,4.798e-05,106840.0,106830.0,0.24064838]
[1762224351998,0.18724378,106840.0,106830.0,0.24064838]
[1762224352787,4.798e-05,106840.0,106830.0,0.24564838]
[1762224353135,4.798e-05,106840.0,106830.0,0.05843506]
[1762224353339,0.18724378,106840.0,106830.0,0.26436971]
[1762224353536,0.18724378,106840.0,106830.0,0.24564838]
[1762224353849,4.798e-05,106840.0,106830.0,0.24564838]
[1762224354049,0.18724378,106840.0,106830.0,0.00792506]
[1762224354250,1.44063566,106840.0,106830.0,0.00792506]
[1762224354476,1.12068178,106840.0,106830.0,0.00792506]
[1762224354774,1.12068178,106840.0,106830.0,0.01968506]
[1762224355099,0.91997598,106840.0,106830.0,0.22014838]
[1762224355323,0.91997598,106840.0,106830.0,0.24364838]
[1762224355602,0.98976762,106840.0,106830.0,0.24064838]
[1762224355811,0.91997598,106840.0,106830.0,0.24064838]
[1762224356021,1.10717178,106840.0,106830.0,0.24364838]
[1762224356459,1.10717178,106840.0,106830.0,0.05643506]
[1762224356676,0.91997598,106840.0,106830.0,0.24364838]
[1762224358099,1.10717178,106840.0,106830.0,0.24364838]
[1762224359783,0.91997598,106840.0,106830.0,0.24364838]
[1762224359891,1.01455204,106840.0,106830.0,0.24364838]
[1762224360096,0.91997598,106840.0,106830.0,0.24364838]
[1762224360935,4.798e-05,106840.0,106830.0,0.24364838]
[1762224361340,0.18724378,106840.0,106830.0,0.05643506]
[1762224361547,1.44063566,106840.0,106830.0,0.05643506]
[1762224361755,0.91997598,106840.0,106830.0,0.24364838]
[1762224361949,1.10717178,106840.0,106830.0,0.24364838]
[1762224362128,0.28181984,106840.0,106830.0,0.05643506]
[1762224363465,1.20174784,106840.0,106830.0,0.05643506]
[1762224363682,1.54872172,106840.0,106830.0,0.01768506]
[1762224363931,1.53521172,106840.0,106830.0,0.01768506]
[1762224364149,1.53521172,106840.0,106830.0,0.05643506]
[1762224364369,1.53521172,106840.0,106830.0,0.03293506]
[1762224364570,1.53521172,106840.0,106830.0,0.01768506]
[1762224364933,1.53521172,106840.0,106830.0,0.05643506]
[1762224365690,1.53521172,106840.0,106830.0,0.03293506]
[1762224365893,1.56323172,106840.0,106830.0,0.00592506]
[1762224366095,1.59465573,106840.0,106830.0,0.00592506]
[1762224367857,2.26811961,106840.0,106830.0,0.00592506]
[1762224368056,2.26911961,106840.0,106830.0,0.00592506]
[1762224369318,2.26911961,106840.0,106790.0,8e-05]
[1762224369319,0.18826591,106800.0,106790.0,8e-05]
[1762224369547,1.86417955,106800.0,106790.0,8e-05]
[1762224369781,1.12070391,106800.0,106790.0,8e-05]
[1762224370003,1.45416779,106800.0,106790.0,0.00100557]
[1762224370230,1.12070391,106800.0,106790.0,0.18828902]
[1762224370463,0.919928,106800.0,106790.0,0.23879902]
[1762224370720,4.796e-05,106800.0,106790.0,0.23879902]
[1762224371383,4.796e-05,106800.0,106790.0,0.57879902]
[1762224372062,4.796e-05,106800.0,106790.0,0.24379902]
[1762224372291,4.796e-05,106800.0,106790.0,0.24679902]
[1762224372529,0.52077775,106800.0,106790.0,0.05951557]
[1762224372750,1.51991085,106800.0,106790.0,0.24679902]
[1762224372963,1.18644697,106800.0,106790.0,0.24679902]
[1762224373181,1.18644697,106800.0,106790.0,0.03601557]
[1762224373600,1.1062964,106800.0,106790.0,0.03301557]
[1762224373812,1.45327028,106800.0,106790.0,0.01876557]
[1762224374020,1.45327028,106800.0,106790.0,0.01376557]
[1762224374233,0.91903049,106800.0,106790.0,0.21629902]
[1762224374445,0.91903049,106800.0,106790.0,0.24279902]
[1762224374653,0.91903049,106800.0,106790.0,0.24179902]
[1762224374860,0.91903049,106800.0,106790.0,0.23879902]
[1762224375041,1.1062964,106800.0,106790.0,0.05151557]
[1762224375246,1.53433634,106800.0,106790.0,0.02901557]
[1762224375453,1.54784634,106800.0,106790.0,0.00200557]
[1762224375993,1.21438246,106800.0,106790.0,0.01442557]
[1762224376221,1.20087246,106800.0,106790.0,0.01442557]
[1762224376442,1.20087246,106800.0,106790.0,0.21689902]
[1762224376690,1.1062964,106800.0,106790.0,0.21689902]
[1762224377376,1.1062964,106800.0,106790.0,0.02961557]
[1762224378202,1.46678028,106800.0,106790.0,0.00200557]
[1762224378405,1.46778028,106800.0,106790.0,0.00200557]
[1762224378611,1.89582022,106800.0,106790.0,0.00200557]
[1762224378850,1.56235634,106800.0,106790.0,0.00200557]
[1762224379047,1.56235634,106800.0,106790.0,0.00100557]
[1762224380125,1.53533634,106800.0,106790.0,0.02861557]
[1762224380339,1.44076028,106800.0,106790.0,0.02861557]
[1762224380557,1.1082964,106800.0,106790.0,0.02861557]
[1762224380772,0.92103049,106800.0,106790.0,0.21589902]
[1762224380987,0.61127328,106810.0,106790.0,0.24003902]
[1762224381201,0.919031,106800.0,106790.0,0.23959516]
[1762224381402,0.919031,106800.0,106790.0,0.24059516]
[1762224381816,1.10629691,106800.0,106790.0,0.23959516]
[1762224382015,0.18726591,106800.0,106790.0,0.23959516]
[1762224382339,0.18726591,106800.0,106790.0,0.05231171]
[1762224382560,0.18726591,106800.0,106790.0,0.05323728]
[1762224382797,0.18726591,106800.0,106790.0,0.24052073]
[1762224383740,0.919031,106800.0,106790.0,0.24152073]
[1762224386155,0.08402185,106810.0,106790.0,0.24152073]
[1762224386360,0.08402185,106810.0,106800.0,0.22659591]
[1762224386750,0.919031,106820.0,106810.0,0.18724838]
[1762224386951,0.08402185,106830.0,106820.0,0.18723085]
[1762224387157,0.14687698,106830.0,106820.0,0.18723085]
[1762224387358,0.6876003,106830.0,106810.0,0.22380838]
[1762224387568,0.919031,106820.0,106810.0,0.22380838]
[1762224388099,0.002,106820.0,106810.0,0.23899838]
[1762224389664,0.08402185,106830.0,106820.0,0.18723085]
[1762224389867,0.52165968,106840.0,106830.0,0.18720463]
[1762224389868,0.919031,106840.0,106830.0,0.18720463]
[1762224390116,1.45320068,106840.0,106820.0,0.22132239]
[1762224390318,0.27123517,106830.0,106820.0,0.21196085]
[1762224390523,0.08402185,106830.0,106820.0,0.21196085]
[1762224390733,0.08402185,106830.0,106820.0,0.22820085]
[1762224391140,0.08402185,106830.0,106820.0,0.22829099]
[1762224392593,0.27123517,106830.0,106820.0,0.22829099]
[1762224392993,0.08402185,106830.0,106820.0,0.22829099]
[1762224393424,0.27123517,106830.0,106820.0,0.22829099]
[1762224394044,0.08402185,106830.0,106820.0,0.22829099]
[1762224394195,0.27123517,106830.0,106820.0,0.04106014]
[1762224394442,0.27123517,106830.0,106820.0,0.22829099]
[1762224396183,0.27123517,106830.0,106820.0,0.04106014]
[1762224397325,0.18726591,106800.0,106790.0,8e-05]
[1762224397536,1.92572364,106800.0,106790.0,0.00056171]
[1762224397745,1.95137364,106800.0,106790.0,0.00056171]
[1762224397945,2.0459497,106800.0,106790.0,0.00056171]
[1762224398397,1.64103482,106800.0,106790.0,0.01249171]
[1762224398566,1.54645876,106800.0,106790.0,0.01249171]
[1762224398973,1.95037364,106800.0,106790.0,0.00056171]
[1762224399303,1.95037364,106800.0,106790.0,0.00256171]
[1762224399713,1.95137364,106800.0,106790.0,0.00056171]
[1762224399921,2.0479497,106800.0,106790.0,0.00056171]
[1762224401065,2.0232997,106800.0,106790.0,0.00056171]
[1762224401637,1.30403482,106800.0,106790.0,0.00056171]
[1762224401849,0.36886382,106800.0,106790.0,0.05346171]
[1762224402014,0.36886382,106800.0,106790.0,0.02873171]
[1762224402220,1.30403482,106800.0,106790.0,0.02873171]
[1762224402486,1.28589482,106800.0,106790.0,0.02873171]
[1762224402693,1.28489482,106800.0,106790.0,0.02873171]
[1762224402895,1.28489482,106800.0,106790.0,0.03173171]
[1762224402896,0.36586382,106800.0,106790.0,0.03173171]
[1762224403620,0.36586382,106800.0,106790.0,0.03265728]
[1762224403822,0.36586382,106800.0,106790.0,0.21994073]
[1762224404015,1.10629691,106800.0,106790.0,0.24467073]
[1762224404200,0.18726591,106800.0,106790.0,0.24467073]
[1762224404634,0.18726591,106800.0,106790.0,0.05738728]
[1762224404837,0.919031,106800.0,106790.0,0.26339907]
[1762224405045,0.27939241,106810.0,106790.0,0.24467073]
[1762224405257,0.36626422,106810.0,106790.0,0.24374516]
[1762224405410,0.36626422,106810.0,106800.0,0.20445003]
[1762224406680,0.27127241,106810.0,106800.0,0.01818412]
[1762224408481,0.08402185,106810.0,106800.0,0.22869003]
[1762224408998,0.27127023,106810.0,106800.0,0.22869003]
[1762224409167,0.27127023,106810.0,106800.0,0.01818412]
[1762224410172,0.27127023,106810.0,106800.0,0.04142412]
[1762224411488,1.67262771,106810.0,106800.0,0.00169412]
[1762224411684,1.65643771,106810.0,106800.0,0.01818412]
[1762224412532,1.65643771,106810.0,106800.0,0.04142412]
[1762224412851,1.69545771,106810.0,106800.0,0.00169412]
[1762224412968,1.67262771,106810.0,106800.0,0.00169412]
[1762224414016,1.69545771,106810.0,106800.0,0.00169412]
[1762224414433,1.67262771,106810.0,106800.0,0.00169412]
[1762224414639,1.58575611,106810.0,106800.0,0.00169412]
[1762224414882,1.19030123,106810.0,106800.0,0.01818412]
[1762224415067,1.58575611,106810.0,106800.0,0.00169412]
[1762224415266,1.59251611,106810.0,106800.0,0.01304412]
[1762224416810,1.57632611,106810.0,106800.0,0.02953412]
[1762224417231,1.38907773,106810.0,106800.0,0.24004003]
[1762224417613,0.18724838,106810.0,106800.0,0.05277412]
[1762224417812,0.27082423,106810.0,106800.0,0.07802886]
[1762224418150,0.27758423,106810.0,106800.0,0.07802886]
[1762224418804,0.27758423,106810.0,106800.0,0.05277412]
[1762224419131,0.27758423,106810.0,106800.0,0.24004003]
[1762224419957,0.09078185,106810.0,106800.0,0.24004003]
[1762224420335,0.27803023,106810.0,106800.0,0.05277412]
[1762224421769,0.65729511,106810.0,106800.0,0.05277412]
[1762224421928,0.65729511,106810.0,106800.0,0.24004003]
[1762224422388,0.65053511,106810.0,106800.0,0.24004003]
[1762224423294,0.27127023,106810.0,106800.0,0.24004003]
[1762224423477,1.10626212,106820.0,106810.0,0.18724838]
[1762224423684,0.18723112,106820.0,106810.0,0.23869838]
[1762224424284,0.19535112,106820.0,106810.0,0.23869838]
[1762224424433,0.52917387,106820.0,106810.0,0.23869838]
[1762224424664,0.53117387,106820.0,106810.0,0.05145]
[1762224424864,0.88118662,106820.0,106810.0,0.01172]
[1762224425064,0.18724838,106810.0,106800.0,0.03459]
[1762224425263,0.18726591,106800.0,106790.0,0.03573171]
[1762224425508,0.85491141,106800.0,106790.0,0.03573171]
[1762224425714,1.81972241,106800.0,106790.0,0.00056171]
[1762224425873,1.94533562,106800.0,106790.0,0.00056171]
[1762224426317,1.94633562,106800.0,106790.0,0.00056171]
[1762224427301,1.91529847,106800.0,106790.0,0.00056171]
[1762224427943,1.91729847,106800.0,106790.0,0.00256171]
[1762224428159,1.91729847,106800.0,106790.0,0.00056171]
[1762224428371,1.24965297,106800.0,106790.0,0.00056171]
[1762224428561,2.00899667,106800.0,106790.0,0.00056171]
[1762224428720,1.62932482,106800.0,106790.0,0.00056171]
[1762224430377,2.00899667,106800.0,106790.0,0.00056171]
[1762224430743,1.62932482,106800.0,106790.0,0.00148728]
[1762224432331,1.24965297,106800.0,106790.0,0.00148728]
[1762224432540,1.62932482,106800.0,106790.0,0.00148728]
[1762224433573,2.00899667,106800.0,106790.0,0.00148728]
[1762224434739,1.62932482,106800.0,106790.0,0.00148728]
[1762224436136,1.62808416,106800.0,106790.0,0.00148728]
[1762224436345,1.61944946,106800.0,106790.0,0.00148728]
[1762224436668,2.37879316,106800.0,106790.0,0.00148728]
[1762224437165,2.39725163,106800.0,106790.0,0.00148728]
[1762224438541,2.43343391,106800.0,106790.0,0.00148728]
[1762224438947,2.43763391,106800.0,106790.0,0.00148728]
[1762224439787,1.51553388,106790.0,106780.0,0.0042]
[1762224439992,2.05608031,106790.0,106780.0,0.00434445]
[1762224441019,1.85789676,106790.0,106780.0,0.00434445]
[1762224441245,2.04518021,106790.0,106780.0,0.00434445]
[1762224441457,2.04718021,106790.0,106780.0,0.00434445]
[1762224441906,2.04918021,106790.0,106780.0,0.00434445]
[1762224442576,2.29878021,106790.0,106780.0,0.00434445]
[1762224444131,2.36941892,106790.0,106780.0,0.00434445]
[1762224445248,2.21310231,106790.0,106780.0,0.00434445]
[1762224445451,2.21310231,106790.0,106780.0,0.00457591]
[1762224445452,2.28032174,106790.0,106780.0,0.00457591]
[1762224445665,2.29873592,106790.0,106780.0,0.00457591]
[1762224446358,0.27134038,106770.0,106760.0,0.0002]
[1762224446629,2.37814709,106770.0,106760.0,0.00024796]
[1762224446847,2.03934449,106770.0,106760.0,0.00024796]
[1762224448121,2.04034449,106770.0,106760.0,0.00024796]
[1762224448524,2.33034242,106770.0,106760.0,0.00024796]
[1762224449156,2.33974496,106770.0,106760.0,0.00024796]
[1762224451396,2.58934496,106770.0,106760.0,0.00024796]
[1762224451565,2.58932476,106770.0,106760.0,0.00024796]
[1762224451973,2.58932476,106770.0,106760.0,0.00071099]
[1762224452170,2.92365965,106770.0,106760.0,0.00071099]
[1762224452422,2.58937994,106770.0,106760.0,0.00071099]
[1762224453123,2.62556222,106770.0,106760.0,0.00071099]
[1762224458623,2.22199472,106770.0,106760.0,0.00071099]
[1762224458843,2.53996815,106770.0,106760.0,0.00071099]
[1762224459021,2.55738351,106770.0,106760.0,0.00071099]
[1762224459218,2.55838351,106770.0,106760.0,0.00071099]
[1762224459437,2.58740625,106770.0,106760.0,0.00071099]
[1762224459581,2.58740625,106770.0,106760.0,0.00171099]
[1762224460661,2.58740625,106770.0,106760.0,0.00271099]
[1762224461045,2.62358853,106770.0,106760.0,0.00271099]
[1762224461946,2.95795101,106770.0,106760.0,1e-08]
[1762224462172,1.48454936,106760.0,106750.0,0.0029]